bitfinex-derivatives/quotes_BTCF0:USTF0_20251220
["timestamp","ask_amount","ask_price","bid_price","bid_amount"]
[1766237895861,0.0113485,88157.0,88145.0,0.01912]
[1766237896061,0.20153061,88155.0,88145.0,0.01912]
[1766237896363,0.20153061,88155.0,88141.0,0.00017023]
[1766237896364,0.0113485,88157.0,88141.0,0.00017023]
[1766237902361,0.02844,88159.0,88141.0,0.00017023]
[1766237905467,0.0397882,88159.0,88141.0,0.00017023]
[1766237905964,0.02844,88159.0,88141.0,0.00017023]
[1766237908866,0.0113488,88155.0,88141.0,0.00017023]
[1766237909170,0.0113484,88158.0,88141.0,0.00017023]
[1766237909968,0.20153061,88151.0,88128.0,1.44768]
[1766237910158,0.0113498,88147.0,88129.0,0.02844]
[1766237910355,0.0113495,88149.0,88129.0,0.02844]
[1766237910954,0.0113495,88149.0,88130.0,0.20170084]
[1766237910955,0.00017023,88148.0,88130.0,0.20170084]
[1766237911159,0.00017023,88148.0,88131.0,0.0113518]
[1766237916672,0.00017023,88148.0,88130.0,0.00017023]
[1766237918277,0.0113498,88147.0,88130.0,0.00017023]
[1766237923587,0.0113501,88144.0,88130.0,0.00017023]
[1766237928589,0.01135,88145.0,88130.0,0.00017023]
[1766237934291,0.01151983,88148.0,88130.0,0.00017023]
[1766237934683,0.02844,88147.0,88130.0,0.00017023]
[1766237937389,0.0113499,88146.0,88130.0,0.00017023]
[1766237939481,0.0113522,88129.0,88115.0,0.01040006]
[1766237939679,0.4032212,88140.0,88102.0,0.0113555]
[1766237939680,0.0113527,88125.0,88102.0,0.0113555]
[1766237939887,0.02844,88124.0,88100.0,0.2016106]
[1766237940595,0.00017023,88121.0,88103.0,0.01152553]
[1766237942085,0.01152343,88121.0,88103.0,0.00017023]
[1766237942788,0.00017023,88121.0,88103.0,0.00017023]
[1766237943786,0.00017023,88121.0,88110.0,0.2016106]
[1766237944482,0.00017023,88121.0,88110.0,0.212965]
[1766237945286,0.0113511,88137.0,88114.0,0.011354]
[1766237945488,0.0113514,88135.0,88114.0,0.011354]
[1766237945683,0.06106707,88156.0,88120.0,0.2016106]
[1766237945888,0.03477391,88155.0,88130.0,0.2016106]
[1766237946090,0.012,88154.0,88130.0,0.2016106]
[1766237946287,0.00017023,88151.0,88133.0,0.00017023]
[1766237946695,0.0113494,88150.0,88133.0,0.00017023]
[1766237946999,0.0397894,88150.0,88133.0,0.00017023]
[1766237947697,0.02844,88150.0,88133.0,0.00017023]
[1766237948288,0.0113487,88156.0,88133.0,0.00017023]
[1766237948597,0.0113473,88167.0,88140.0,0.0113505]
[1766237948790,0.00356,88168.0,88142.0,0.0113503]
[1766237949397,0.00356,88168.0,88146.0,0.01152003]
[1766237950394,0.00356,88168.0,88146.0,0.00017023]
[1766237951106,0.0149071,88168.0,88146.0,0.00017023]
[1766237951792,0.0113479,88161.0,88146.0,0.00017023]
[1766237952200,0.06106707,88190.0,88150.0,0.2016106]
[1766237952505,0.0113461,88176.0,88161.0,0.00017013]
[1766237952702,0.0547228,88175.0,88161.0,0.00017013]
[1766237952893,0.02844,88175.0,88161.0,0.00017013]
[1766237955108,0.0113463,88174.0,88161.0,0.00017013]
[1766237955304,0.2016106,88180.0,88161.0,0.00017013]
[1766237955500,0.0113458,88178.0,88161.0,0.00017013]
[1766237955801,0.0113462,88175.0,88161.0,0.00017013]
[1766237957996,1.44756,88178.0,88161.0,3e-08]
[1766237957997,0.0113467,88171.0,88161.0,3e-08]
[1766237958192,0.2016106,88171.0,88161.0,3e-08]
[1766237958405,0.2300506,88171.0,88161.0,3e-08]
[1766237959308,0.0113473,88167.0,88161.0,3e-08]
[1766237959804,0.0113477,88164.0,88161.0,3e-08]
[1766237960004,0.0113476,88164.0,88137.0,0.0113509]
[1766237960196,0.0113476,88164.0,88138.0,0.02844]
[1766237960394,0.0113476,88164.0,88139.0,0.0113508]
[1766237960598,0.0113476,88164.0,88140.0,0.00356]
[1766237960795,0.0113476,88164.0,88140.0,0.2051706]
[1766237961110,0.0001698,88161.0,88143.0,0.00017013]
[1766237965613,0.0001698,88161.0,88144.0,0.00204]
[1766237968310,0.2015101,88160.0,88143.0,0.00017013]
[1766237969213,0.0113484,88158.0,88143.0,0.00017013]
[1766237970416,0.2015101,88160.0,88143.0,0.00017013]
[1766237970616,0.0001698,88161.0,88143.0,0.00017013]
[1766237971121,0.0001698,88161.0,88144.0,0.0113501]
[1766237975429,0.20151818,88160.0,88144.0,0.0113501]
[1766237981133,0.20151818,88160.0,88143.0,0.00017013]
[1766237981339,0.20151818,88160.0,88147.0,0.0113497]
[1766237983538,0.20151818,88160.0,88143.0,0.01152033]
[1766237987843,0.0001698,88161.0,88146.0,0.0113498]
[1766237988044,0.20151818,88160.0,88146.0,0.0113498]
[1766237988241,0.02844,88160.0,88150.0,0.20151818]
[1766237988639,1.44744,88173.0,88150.0,0.20151818]
[1766237988640,0.0113446,88188.0,88164.0,0.0113475]
[1766237988835,0.0113449,88185.0,88164.0,0.0113475]
[1766237989035,0.05477314,88187.0,88163.0,0.02844]
[1766237989036,0.02633314,88184.0,88170.0,0.20151818]
[1766237989235,0.0297035,88196.0,88170.0,0.20151818]
[1766237989439,0.20151818,88190.0,88170.0,0.20151818]
[1766237989740,0.0113444,88189.0,88171.0,0.00017013]
[1766237990141,0.0113452,88183.0,88171.0,0.00017013]
[1766237990739,0.06106707,88230.0,88184.0,0.011345]
[1766237990931,0.06106707,88230.0,88171.0,0.40017013]
[1766237990932,0.20151818,88200.0,88198.0,3e-08]
[1766237991245,0.02844,88206.0,88198.0,3e-08]
[1766237991445,0.0113423,88205.0,88198.0,3e-08]
[1766237991644,0.0113428,88201.0,88198.0,3e-08]
[1766237991840,0.0113428,88201.0,88154.0,0.08149568]
[1766237991841,0.0113445,88189.0,88153.0,0.06201705]
[1766237992042,0.0113444,88189.0,88163.0,0.0113476]
[1766237992247,0.0113444,88189.0,88170.0,0.20151818]
[1766237992542,0.02844,88191.0,88170.0,0.20151818]
[1766237992735,0.20151818,88190.0,88170.0,0.20151818]
[1766237992932,0.00017013,88189.0,88172.0,0.00017013]
[1766237993233,0.00017013,88189.0,88173.0,0.02844]
[1766237993947,0.0113429,88200.0,88179.0,0.20151818]
[1766237994250,0.00356,88199.0,88179.0,0.20151818]
[1766237994445,0.02844,88203.0,88179.0,0.20151818]
[1766237995041,0.02844,88203.0,88182.0,0.00017013]
[1766237995248,0.02844,88203.0,88182.0,0.02861013]
[1766237995841,0.20151818,88200.0,88182.0,0.02861013]
[1766237996648,0.02848,88207.0,88190.0,0.20151818]
[1766237996846,0.01564,88207.0,88190.0,0.20151818]
[1766237997053,0.01564,88207.0,88190.0,0.22999818]
[1766237997552,0.02848,88209.0,88190.0,0.22999818]
[1766237998246,0.02848,88209.0,88190.0,0.22976191]
[1766237998452,0.20128191,88230.0,88199.0,0.20128191]
[1766237998653,0.0546285,88229.0,88206.0,0.00017003]
[1766237998951,0.0113405,88219.0,88206.0,0.00017003]
[1766237999150,0.0398205,88219.0,88206.0,0.00017003]
[1766238001751,0.011341,88215.0,88206.0,3e-08]
[1766238001956,0.0113416,88210.0,88176.0,0.011346]
[1766238002255,0.011342,88207.0,88180.0,0.20128191]
[1766238002455,0.011342,88207.0,88180.0,0.21262731]
[1766238002652,0.011342,88207.0,88190.0,0.20128191]
[1766238002854,0.011342,88207.0,88190.0,0.22972191]
[1766238003052,0.00016969,88207.0,88190.0,0.22989194]
[1766238004658,0.0113422,88206.0,88190.0,0.02861003]
[1766238004843,0.0113422,88206.0,88190.0,0.22989194]
[1766238005353,0.0113422,88206.0,88190.0,0.02861003]
[1766238006154,0.0113422,88206.0,88190.0,0.00017003]
[1766238006361,0.0113422,88206.0,88191.0,0.01744]
[1766238006658,0.0113422,88206.0,88191.0,0.01292]
[1766238007353,0.0113426,88203.0,88190.0,0.00017003]
[1766238007553,0.20128191,88200.0,88170.0,0.20128191]
[1766238007760,0.20128191,88201.0,88170.0,0.20128191]
[1766238007961,0.20128191,88201.0,88171.0,0.02844]
[1766238008151,0.0113436,88195.0,88180.0,0.20128191]
[1766238008851,0.20128191,88200.0,88180.0,0.20128191]
[1766238008852,0.0113431,88199.0,88180.0,0.20128191]
[1766238009863,0.0113435,88196.0,88180.0,0.20128191]
[1766238010651,0.0113435,88196.0,88179.0,0.02861003]
[1766238010955,0.20128191,88190.0,88172.0,0.02844]
[1766238011156,0.20128191,88190.0,88159.0,1.4468]
[1766238011157,0.0113447,88187.0,88170.0,0.0122]
[1766238011353,0.20128191,88180.0,88170.0,0.0122]
[1766238012063,0.0113451,88184.0,88170.0,0.0122]
[1766238012064,0.02844,88183.0,88170.0,0.0122]
[1766238015371,0.02844,88183.0,88166.0,0.00017003]
[1766238019067,0.20128191,88180.0,88166.0,0.00017003]
[1766238020067,0.0113456,88179.0,88166.0,3e-08]
[1766238021562,0.20128191,88180.0,88166.0,3e-08]
[1766238022370,0.21262751,88180.0,88166.0,3e-08]
[1766238024474,0.0113459,88177.0,88166.0,3e-08]
[1766238024764,0.02844,88179.0,88166.0,3e-08]
[1766238024969,0.02844,88179.0,88169.0,0.20128191]
[1766238025271,0.02844,88179.0,88166.0,3e-08]
[1766238029375,0.20128191,88180.0,88166.0,3e-08]
[1766238030386,0.056702,88220.0,88166.0,3e-08]
[1766238030570,0.20128191,88190.0,88170.0,0.20128191]
[1766238030766,0.02844,88189.0,88171.0,0.0113466]
[1766238031675,0.02861003,88189.0,88171.0,0.01151663]
[1766238032476,0.02861003,88189.0,88174.0,0.0113462]
[1766238032874,0.00099999,88240.0,88179.0,0.20128191]
[1766238033075,0.1135,88247.0,88179.0,0.20128191]
[1766238033076,0.20128191,88200.0,88179.0,0.20128191]
[1766238033374,0.0113438,88194.0,88172.0,0.0397865]
[1766238033574,0.20128191,88190.0,88172.0,0.0397865]
[1766238033869,0.20128191,88190.0,88173.0,0.0113463]
[1766238034067,0.20145194,88190.0,88173.0,0.0113463]
[1766238034675,0.20154275,88190.0,88173.0,0.0113463]
[1766238035174,0.00017003,88190.0,88173.0,0.0113463]
[1766238038466,0.00017003,88190.0,88172.0,0.02861003]
[1766238038868,0.00017003,88190.0,88172.0,0.03995653]
[1766238043278,0.00017003,88190.0,88172.0,0.02861003]
[1766238044172,0.20136872,88182.0,88172.0,0.00017003]
[1766238044367,0.0113454,88181.0,88172.0,3e-08]
[1766238045382,0.0113448,88186.0,88172.0,3e-08]
[1766238047287,0.0113452,88183.0,88172.0,3e-08]
[1766238047583,0.20153875,88190.0,88172.0,3e-08]
[1766238049174,0.0113449,88185.0,88172.0,3e-08]
[1766238050980,0.00017003,88190.0,88176.0,0.011346]
[1766238051285,0.02844,88196.0,88180.0,0.20136872]
[1766238051580,0.02844,88196.0,88182.0,0.0113452]
[1766238051784,0.02844,88196.0,88178.0,0.0113456]
[1766238052282,0.02861003,88196.0,88178.0,0.0113456]
[1766238057488,0.02861003,88196.0,88181.0,0.0113452]
[1766238058087,0.02861003,88196.0,88177.0,0.0113458]
[1766238058487,0.02861003,88196.0,88176.0,0.0397859]
[1766238060286,0.00017003,88196.0,88176.0,0.0397859]
[1766238061185,0.01151353,88196.0,88176.0,0.0397859]
[1766238061988,0.00017003,88196.0,88176.0,0.0397859]
[1766238064692,0.0113436,88195.0,88172.0,0.01134643]
[1766238064995,0.011344,88192.0,88173.0,0.02844]
[1766238065181,0.0113444,88189.0,88172.0,3e-08]
[1766238065381,0.0113437,88194.0,88173.0,0.00856]
[1766238066389,0.0113441,88191.0,88173.0,0.00856]
[1766238066590,0.0113448,88186.0,88172.0,3e-08]
[1766238067689,0.00017003,88196.0,88172.0,3e-08]
[1766238067690,0.00017003,88196.0,88186.0,0.0113447]
[1766238067884,0.21270782,88230.0,88185.0,0.0113448]
[1766238067885,0.0113419,88208.0,88185.0,0.0113448]
[1766238068093,0.0113423,88205.0,88185.0,0.02844]
[1766238068899,0.00016963,88204.0,88186.0,0.00017003]
[1766238069597,0.00016963,88204.0,88186.0,0.01151473]
[1766238070398,1.44688,88216.0,88186.0,0.01151473]
[1766238070399,0.06104928,88239.0,88201.0,0.0113427]
[1766238070702,0.0113405,88219.0,88198.0,0.0036]
[1766238070885,0.0123805,88219.0,88198.0,0.0036]
[1766238071289,0.0113409,88216.0,88195.0,0.01016]
[1766238071493,0.0113413,88213.0,88196.0,0.00017003]
[1766238071896,0.00104,88219.0,88196.0,0.00017003]
[1766238072094,0.026145,88218.0,88196.0,0.00017003]
[1766238072289,0.00104,88219.0,88196.0,0.00017003]
[1766238072900,0.0113405,88219.0,88196.0,0.00017003]
[1766238073203,0.0113408,88217.0,88196.0,0.00017003]
[1766238073404,0.0113412,88214.0,88196.0,0.00017003]
[1766238073603,0.0036,88218.0,88196.0,0.00017003]
[1766238073992,0.0113409,88216.0,88196.0,0.00017003]
[1766238074707,0.0113413,88213.0,88196.0,0.00017003]
[1766238075411,0.011341,88215.0,88196.0,0.00017003]
[1766238076207,0.02848,88216.0,88196.0,0.00017003]
[1766238076391,0.0113418,88209.0,88196.0,0.00017003]
[1766238076703,0.0113428,88202.0,88196.0,3e-08]
[1766238078507,0.02848,88205.0,88196.0,3e-08]
[1766238082093,0.00017,88211.0,88196.0,3e-08]
[1766238083397,0.20124369,88210.0,88196.0,3e-08]
[1766238083701,0.00017,88211.0,88196.0,3e-08]
[1766238083902,0.0113418,88209.0,88196.0,3e-08]
[1766238084805,0.00017,88211.0,88196.0,3e-08]
[1766238089408,0.00017,88211.0,88200.0,0.20124369]
[1766238089713,0.00017,88211.0,88196.0,0.01134343]
[1766238090514,0.00017,88211.0,88196.0,3e-08]
[1766238091517,0.0113418,88209.0,88196.0,3e-08]
[1766238091920,0.21258539,88210.0,88196.0,3e-08]
[1766238092213,0.0113417,88210.0,88196.0,3e-08]
[1766238096616,0.00017,88211.0,88196.0,3e-08]
[1766238097413,0.00017,88211.0,88200.0,0.20126786]
[1766238098111,0.00017,88211.0,88196.0,3e-08]
[1766238098312,0.00017,88211.0,88200.0,0.20126786]
[1766238103322,0.00017,88211.0,88197.0,0.0397832]
[1766238103323,0.20126786,88210.0,88197.0,0.02844]
[1766238104626,0.00017,88211.0,88197.0,0.02844]
[1766238104917,0.00017,88211.0,88196.0,3e-08]
[1766238105122,0.20126786,88210.0,88196.0,3e-08]
[1766238105319,0.0113425,88204.0,88196.0,3e-08]
[1766238107520,0.02844,88205.0,88196.0,3e-08]
[1766238117433,0.00017,88211.0,88196.0,3e-08]
[1766238117629,0.00017,88211.0,88200.0,0.20131986]
[1766238118131,0.00017,88211.0,88196.0,3e-08]
[1766238118335,0.00017,88211.0,88200.0,0.20131986]
[1766238118732,0.20131986,88210.0,88196.0,3e-08]
[1766238118935,0.21266156,88210.0,88196.0,3e-08]
[1766238120639,0.0113417,88210.0,88196.0,3e-08]
[1766238120832,0.21266156,88210.0,88196.0,3e-08]
[1766238121229,0.0113417,88210.0,88196.0,3e-08]
[1766238121629,0.21266156,88210.0,88196.0,3e-08]
[1766238124241,0.20131986,88206.0,88196.0,3e-08]
[1766238124535,0.0397821,88207.0,88196.0,3e-08]
[1766238128337,0.0113429,88200.0,88196.0,3e-08]
[1766238128531,0.0113432,88198.0,88196.0,3e-08]
[1766238128732,0.0113435,88196.0,88170.0,0.20131986]
[1766238129032,0.0113435,88196.0,88171.0,0.02844]
[1766238129340,0.0113435,88196.0,88173.0,0.0113463]
[1766238129842,0.00017003,88193.0,88176.0,0.00017003]
[1766238130135,0.02844,88192.0,88176.0,0.00017003]
[1766238131442,0.20131986,88190.0,88176.0,0.00017003]
[1766238134134,0.0113444,88189.0,88176.0,0.00017003]
[1766238135845,0.02844,88188.0,88176.0,0.00017003]
[1766238144148,0.20131986,88190.0,88176.0,0.00017003]
[1766238144348,0.0397844,88189.0,88176.0,0.00017003]
[1766238147852,0.02844,88189.0,88176.0,0.00017003]
[1766238153856,0.0397844,88189.0,88176.0,0.00017003]
[1766238156161,0.02844,88189.0,88176.0,0.00017003]
[1766238157159,0.02844,88189.0,88179.0,0.20138747]
[1766238157750,0.02844,88189.0,88176.0,0.00017003]
[1766238158955,0.02844,88189.0,88179.0,0.20138747]
[1766238159357,0.02844,88189.0,88176.0,0.00017003]
[1766238170269,0.02844,88189.0,88176.0,0.01151603]
[1766238173765,0.00017003,88193.0,88182.0,0.0113452]
[1766238173958,0.00017003,88193.0,88185.0,0.0113448]
[1766238174160,3e-08,88193.0,88185.0,0.0113448]
[1766238175072,3e-08,88193.0,88188.0,0.0113444]
[1766238180171,3e-08,88193.0,88184.0,0.0113449]
[1766238186576,3e-08,88193.0,88181.0,0.02844]
[1766238186778,3e-08,88193.0,88182.0,0.0113452]
[1766238191676,3e-08,88193.0,88185.0,0.0113448]
[1766238191868,3e-08,88193.0,88188.0,0.0113444]
[1766238192074,0.01130143,88212.0,88189.0,0.02844]
[1766238192382,0.0113417,88210.0,88189.0,0.02844]
[1766238192680,0.011342,88208.0,88189.0,0.02844]
[1766238192881,0.02596153,88207.0,88189.0,0.02844]
[1766238193076,0.02596153,88206.0,88189.0,0.02861003]
[1766238193280,0.011342,88208.0,88189.0,0.02861003]
[1766238193470,0.02596098,88207.0,88189.0,0.02861003]
[1766238193671,0.02596098,88206.0,88189.0,0.02861003]
[1766238193979,0.011342,88208.0,88189.0,0.02861003]
[1766238194176,0.02596098,88207.0,88189.0,0.02861003]
[1766238194372,0.0113438,88194.0,88170.0,0.20132572]
[1766238194573,0.0113432,88198.0,88174.0,0.0113062]
[1766238195283,0.0113436,88195.0,88174.0,0.0113062]
[1766238195486,0.00017003,88193.0,88176.0,0.00017003]
[1766238195875,0.00017003,88193.0,88177.0,0.0113458]
[1766238208588,0.00017003,88193.0,88176.0,0.00017003]
[1766238210787,0.00017003,88193.0,88176.0,0.01151603]
[1766238221399,0.00017003,88193.0,88180.0,0.20135123]
[1766238227001,0.00017003,88193.0,88181.0,0.02844]
[1766238240794,0.20135123,88191.0,88181.0,0.02844]
[1766238241401,0.20135123,88191.0,88176.0,0.00017003]
[1766238241710,0.20135123,88191.0,88179.0,0.02844]
[1766238241907,0.02844,88201.0,88180.0,0.20135123]
[1766238242113,0.20135123,88200.0,88180.0,0.20135123]
[1766238242412,0.20135123,88200.0,88179.0,0.02844]
[1766238242713,0.02844,88199.0,88179.0,0.02844]
[1766238242906,0.02844,88199.0,88180.0,0.21269673]
[1766238243207,0.0113389,88232.0,88189.0,0.20135123]
[1766238243410,0.0113407,88218.0,88199.0,0.20135123]
[1766238243711,0.02589878,88217.0,88199.0,0.20135123]
[1766238245514,0.02589878,88217.0,88200.0,0.22979123]
[1766238245703,0.21269163,88220.0,88200.0,0.22979123]
[1766238246009,0.02577708,88219.0,88200.0,0.22979123]
[1766238246204,0.02577708,88218.0,88200.0,0.22979123]
[1766238246409,0.21269163,88220.0,88200.0,0.22979123]
[1766238246611,0.02576984,88219.0,88200.0,0.22979123]
[1766238246811,0.02576984,88218.0,88200.0,0.22979123]
[1766238247012,0.21269163,88220.0,88200.0,0.22979123]
[1766238247212,0.02576994,88219.0,88200.0,0.22979123]
[1766238247411,0.02576994,88218.0,88200.0,0.22979123]
[1766238247613,0.21269163,88220.0,88200.0,0.22979123]
[1766238247809,0.02576434,88219.0,88200.0,0.22979123]
[1766238248019,0.02576434,88218.0,88200.0,0.22979123]
[1766238248319,0.21269163,88220.0,88200.0,0.22979123]
[1766238248520,0.02575997,88219.0,88200.0,0.22979123]
[1766238248709,0.21269163,88220.0,88200.0,0.22979123]
[1766238249016,0.02575996,88219.0,88200.0,0.22979123]
[1766238249213,0.21269163,88220.0,88200.0,0.22979123]
[1766238249413,0.02575638,88219.0,88200.0,0.22979123]
[1766238249616,0.20135123,88220.0,88200.0,0.22979123]
[1766238249804,0.02575643,88219.0,88200.0,0.02844]
[1766238250009,1.46696,88223.0,88200.0,0.22979123]
[1766238250217,0.20135123,88220.0,88200.0,0.22979123]
[1766238250711,0.0113405,88219.0,88200.0,0.22979123]
[1766238253019,0.0113405,88219.0,88200.0,0.02844]
[1766238253221,0.0113405,88219.0,88200.0,0.22979123]
[1766238254921,0.0113405,88219.0,88200.0,0.22968668]
[1766238260310,0.0113405,88219.0,88200.0,0.02844]
[1766238260511,0.0113405,88219.0,88200.0,0.22968668]
[1766238261527,0.20124668,88220.0,88200.0,0.22968668]
[1766238261720,0.21258708,88220.0,88200.0,0.22968668]
[1766238264426,0.0113404,88220.0,88200.0,0.22968668]
[1766238264617,0.21258708,88220.0,88200.0,0.22968668]
[1766238266427,0.0255068,88219.0,88200.0,0.22968668]
[1766238266628,0.21258708,88220.0,88200.0,0.22968668]
[1766238266818,0.0255074,88219.0,88200.0,0.22968668]
[1766238267019,0.21258708,88220.0,88200.0,0.22968668]
[1766238267219,0.0255074,88219.0,88200.0,0.22968668]
[1766238267416,0.21258708,88220.0,88200.0,0.22968668]
[1766238267620,0.02551032,88219.0,88200.0,0.22968668]
[1766238267930,0.21258708,88220.0,88200.0,0.22968668]
[1766238268131,0.02551032,88219.0,88200.0,0.22968668]
[1766238268428,0.21258708,88220.0,88200.0,0.22968668]
[1766238268620,0.02551383,88219.0,88200.0,0.22968668]
[1766238268821,0.21258708,88220.0,88200.0,0.22968668]
[1766238269027,0.02551383,88219.0,88200.0,0.22968668]
[1766238269226,0.02551751,88218.0,88200.0,0.22968668]
[1766238269530,0.02844,88217.0,88200.0,0.22968668]
[1766238271029,0.02844,88217.0,88201.0,0.02844]
[1766238271225,0.20124668,88211.0,88201.0,0.02844]
[1766238271527,0.20124668,88211.0,88200.0,0.02844]
[1766238271931,0.0113412,88214.0,88200.0,0.02844]
[1766238273331,0.0113412,88214.0,88198.0,0.02861003]
[1766238274533,0.02844,88217.0,88198.0,0.02861003]
[1766238274732,0.02554998,88216.0,88198.0,0.02861003]
[1766238275033,0.02554998,88215.0,88198.0,0.02861003]
[1766238275222,0.02844,88217.0,88200.0,0.20124668]
[1766238275418,0.0255524,88216.0,88200.0,0.20124668]
[1766238275619,0.02844,88217.0,88200.0,0.20124668]
[1766238275620,0.0255524,88215.0,88200.0,0.20124668]
[1766238275824,0.02844,88217.0,88200.0,0.20124668]
[1766238276019,0.02555245,88216.0,88200.0,0.20124668]
[1766238276220,0.02555245,88215.0,88200.0,0.20124668]
[1766238276423,0.02844,88217.0,88200.0,0.20124668]
[1766238276623,0.02555256,88216.0,88200.0,0.20124668]
[1766238276834,0.02555256,88215.0,88200.0,0.20124668]
[1766238277028,0.02844,88217.0,88200.0,0.20124668]
[1766238277226,0.02555256,88216.0,88200.0,0.20124668]
[1766238277426,0.02555256,88215.0,88200.0,0.20124668]
[1766238277627,0.02844,88217.0,88200.0,0.20124668]
[1766238277827,0.02555261,88216.0,88200.0,0.20124668]
[1766238278036,0.02555261,88215.0,88200.0,0.20124668]
[1766238278233,1.44656,88226.0,88198.0,0.02861003]
[1766238278234,0.14366239,88260.0,88205.0,0.40249336]
[1766238278436,0.02555897,88259.0,88240.0,0.20124668]
[1766238278633,0.02555897,88258.0,88241.0,0.00017003]
[1766238278833,0.20124668,88251.0,88241.0,0.00017003]
[1766238280644,0.20124668,88251.0,88227.0,0.02844]
[1766238280848,0.20124668,88251.0,88160.0,0.14197222]
[1766238280849,0.0113389,88232.0,88206.0,0.04082808]
[1766238281051,0.20124668,88230.0,88210.0,0.20124668]
[1766238281239,0.20124668,88230.0,88210.0,0.22968668]
[1766238281440,0.02844,88233.0,88210.0,0.02844]
[1766238281644,0.0113389,88232.0,88210.0,0.02844]
[1766238281842,0.00017003,88230.0,88213.0,0.00017003]
[1766238287150,0.0113392,88229.0,88213.0,0.00017003]
[1766238287855,0.20121233,88240.0,88213.0,0.00017003]
[1766238287856,0.24098763,88260.0,88227.0,0.0113393]
[1766238288046,0.0397753,88260.0,88228.0,0.00032]
[1766238288246,0.22965233,88260.0,88228.0,0.00032]
[1766238288446,0.0113362,88253.0,88228.0,0.00032]
[1766238288651,0.0113362,88253.0,88232.0,0.00017003]
[1766238288953,0.20121233,88250.0,88232.0,0.00017003]
[1766238289161,0.0113364,88251.0,88232.0,0.00017003]
[1766238289454,0.20121233,88250.0,88232.0,0.00017003]
[1766238289654,0.0113369,88247.0,88232.0,0.00017003]
[1766238289958,0.0113374,88244.0,88232.0,0.00017003]
[1766238290452,0.0113368,88248.0,88232.0,0.00017003]
[1766238293143,0.0113368,88248.0,88227.0,0.0016]
[1766238293553,0.20114736,88250.0,88211.0,0.04082808]
[1766238293756,0.0113377,88241.0,88212.0,0.02844]
[1766238294058,0.02844,88240.0,88212.0,0.02844]
[1766238294360,0.00017003,88235.0,88218.0,0.0113405]
[1766238295459,0.00017003,88235.0,88220.0,0.20114736]
[1766238295860,0.00017003,88235.0,88218.0,0.0113405]
[1766238296250,0.00017003,88235.0,88220.0,0.20114736]
[1766238296460,0.00017003,88235.0,88221.0,0.0113402]
[1766238296662,0.00017003,88235.0,88217.0,0.00017003]
[1766238296962,0.00017003,88235.0,88218.0,0.02844]
[1766238297157,0.00017003,88235.0,88220.0,0.20114736]
[1766238298156,0.00017003,88235.0,88218.0,0.02844]
[1766238298357,0.00017003,88235.0,88220.0,0.20114736]
[1766238299362,0.00017003,88235.0,88218.0,0.02844]
[1766238299564,0.00017003,88235.0,88220.0,0.20114736]
[1766238300358,0.20114736,88230.0,88217.0,0.00017003]
[1766238300562,0.00017003,88235.0,88217.0,0.00017003]
[1766238301260,0.02844,88234.0,88217.0,0.00017003]
[1766238303965,3e-08,88235.0,88220.0,0.20114736]
[1766238304265,3e-08,88237.0,88220.0,0.20114736]
[1766238305259,0.02844,88239.0,88221.0,0.0113402]
[1766238305454,0.20114736,88250.0,88221.0,0.0113402]
[1766238305664,1.01670687,88362.0,88220.0,0.22958736]
[1766238305665,0.0113349,88263.0,88240.0,0.20114736]
[1766238305970,1.4462,88277.0,88240.0,0.20114736]
[1766238305971,0.02844,88264.0,88250.0,0.20114736]
[1766238306162,0.0126,88263.0,88250.0,0.20114736]
[1766238307872,0.011335,88262.0,88245.0,0.02848]
[1766238308361,0.011335,88262.0,88243.0,0.00017003]
[1766238311960,0.0126,88263.0,88243.0,0.00017003]
[1766238313472,0.0113358,88256.0,88243.0,0.00017003]
[1766238313964,0.0113357,88257.0,88243.0,0.00017003]
[1766238315072,0.02844,88268.0,88243.0,0.00017003]
[1766238315268,0.02844,88268.0,88244.0,0.0113372]
[1766238316062,0.0113343,88267.0,88243.0,0.00017003]
[1766238316271,0.02844,88268.0,88243.0,0.01150733]
[1766238316772,0.02844,88268.0,88250.0,0.20114736]
[1766238318266,0.0113333,88275.0,88258.0,0.20114736]
[1766238318476,0.01384,88274.0,88258.0,0.20114736]
[1766238318865,0.01384,88274.0,88250.0,0.20114736]
[1766238320388,0.0113301,88300.0,88260.0,0.20114736]
[1766238320675,0.0113301,88300.0,88270.0,0.00016993]
[1766238320676,0.0113324,88282.0,88270.0,0.00016993]
[1766238320976,0.02604,88281.0,88270.0,0.00016993]
[1766238324464,1.64698736,88280.0,88247.0,0.04082808]
[1766238324670,0.0113336,88273.0,88250.0,0.20114736]
[1766238324870,0.02844,88272.0,88250.0,0.20114736]
[1766238325381,0.0001696,88270.0,88252.0,0.00016993]
[1766238326278,0.00552,88271.0,88260.0,0.20114736]
[1766238327282,0.00552,88271.0,88260.0,0.20097473]
[1766238328571,0.00428,88276.0,88260.0,0.20097473]
[1766238329370,0.00428,88276.0,88257.0,0.00016993]
[1766238329570,0.00428,88276.0,88260.0,0.20097473]
[1766238330277,0.00368,88277.0,88260.0,0.20097473]
[1766238331277,0.0113337,88273.0,88259.0,0.02844]
[1766238331782,0.015013,88277.0,88259.0,0.02844]
[1766238332183,0.00368,88277.0,88259.0,0.02844]
[1766238333184,0.00368,88277.0,88260.0,0.20097473]
[1766238338077,0.00336,88279.0,88262.0,0.0113349]
[1766238338286,0.00336,88279.0,88267.0,0.20097473]
[1766238338477,0.02844,88282.0,88267.0,0.20097473]
[1766238339882,0.02844,88282.0,88270.0,0.20097473]
[1766238341476,0.0113314,88290.0,88270.0,0.20097473]
[1766238341672,0.0113316,88288.0,88270.0,0.20097473]
[1766238341875,0.0113316,88288.0,88270.0,0.20114466]
[1766238343286,0.02844,88289.0,88270.0,0.20114466]
[1766238343488,0.02844,88289.0,88279.0,0.20093076]
[1766238343680,0.02844,88289.0,88270.0,0.00016993]
[1766238343873,0.02844,88289.0,88270.0,0.20110069]
[1766238344285,0.06091132,88299.0,88279.0,0.40186152]
[1766238344591,0.02844,88298.0,88279.0,0.20093076]
[1766238345183,0.02844,88298.0,88288.0,0.20093076]
[1766238345487,0.0113301,88300.0,88288.0,0.20093076]
[1766238345683,0.02844,88299.0,88288.0,0.20093076]
[1766238346189,0.0113293,88306.0,88282.0,0.02844]
[1766238346385,0.10188724,88327.0,88282.0,0.02844]
[1766238346386,0.0113297,88304.0,88282.0,0.02844]
[1766238346579,0.0113297,88304.0,88290.0,0.20093076]
[1766238347584,0.40186152,88300.0,88284.0,3e-08]
[1766238347783,0.0113311,88293.0,88274.0,0.00564]
[1766238347973,0.0397711,88293.0,88274.0,0.00564]
[1766238348179,0.0397711,88293.0,88280.0,0.20093076]
[1766238348678,0.02844,88293.0,88280.0,0.20093076]
[1766238349078,0.00016993,88295.0,88280.0,0.20093076]
[1766238349079,0.02844,88294.0,88280.0,0.20093076]